[Event "Late-Titled-Tuesday-Blitz-March-05-2024"]
[Site "Chess.com"]
[Date "2024.03.05"]
[Round "4"]
[White "tolimachess"]
[Black "PepeCuenca"]
[Result "1-0"]
[WhiteElo "2446"]
[BlackElo "2687"]
[TimeControl "180+1"]
[EndTime "14:39:32 PST"]
[Termination "tolimachess won on time"]

1. e4 {[%clk 0:02:54.5]} 1... c5 {[%clk 0:03:00.1]} 2. Nf3 {[%clk 0:02:51.7]}
2... Nc6 {[%clk 0:03:00.5]} 3. d4 {[%clk 0:02:51.1]} 3... cxd4 {[%clk
0:03:01.4]} 4. Nxd4 {[%clk 0:02:51.9]} 4... e5 {[%clk 0:03:02]} 5. Nb5 {[%clk
0:02:50.8]} 5... d6 {[%clk 0:03:02.1]} 6. N1c3 {[%clk 0:02:48.7]} 6... a6 {[%clk
0:03:02.4]} 7. Na3 {[%clk 0:02:48.8]} 7... Be7 {[%clk 0:03:03.1]} 8. Nd5 {[%clk
0:02:47.9]} 8... Nf6 {[%clk 0:03:03.5]} 9. Nxf6+ {[%clk 0:02:38.6]} 9... Bxf6
{[%clk 0:03:03.7]} 10. c4 {[%clk 0:02:39]} 10... O-O {[%clk 0:02:59.6]} 11. Be2
{[%clk 0:02:39.4]} 11... Bg5 {[%clk 0:02:58.7]} 12. O-O {[%clk 0:02:34.4]} 12...
Be6 {[%clk 0:02:52.2]} 13. Nc2 {[%clk 0:02:22.7]} 13... Bxc1 {[%clk 0:02:40.6]}
14. Rxc1 {[%clk 0:02:23.6]} 14... Rc8 {[%clk 0:02:39.1]} 15. Qd2 {[%clk
0:02:20.9]} 15... Qe7 {[%clk 0:02:34.3]} 16. Rcd1 {[%clk 0:02:19.1]} 16... Rcd8
{[%clk 0:02:26.6]} 17. a3 {[%clk 0:02:11]} 17... g6 {[%clk 0:02:20.6]} 18. b4
{[%clk 0:02:10.3]} 18... f5 {[%clk 0:02:15.7]} 19. f3 {[%clk 0:02:06.9]} 19...
f4 {[%clk 0:02:11.1]} 20. Qe1 {[%clk 0:02:03.3]} 20... g5 {[%clk 0:02:03.4]} 21.
h3 {[%clk 0:01:53.7]} 21... h5 {[%clk 0:02:03.1]} 22. Qf2 {[%clk 0:01:51.9]}
22... Qf7 {[%clk 0:01:31]} 23. Rd5 {[%clk 0:01:44.5]} 23... Bxd5 {[%clk
0:01:28]} 24. exd5 {[%clk 0:01:45.4]} 24... Ne7 {[%clk 0:01:24.5]} 25. Bd3
{[%clk 0:01:45.8]} 25... Nf5 {[%clk 0:01:12]} 26. Re1 {[%clk 0:01:42.4]} 26...
Qg7 {[%clk 0:01:05.4]} 27. c5 {[%clk 0:01:33.4]} 27... g4 {[%clk 0:00:54.9]} 28.
fxg4 {[%clk 0:01:33]} 28... hxg4 {[%clk 0:00:55.8]} 29. hxg4 {[%clk 0:01:32.8]}
29... Qxg4 {[%clk 0:00:35]} 30. cxd6 {[%clk 0:01:23.6]} 30... Ng3 {[%clk
0:00:29.1]} 31. Rxe5 {[%clk 0:01:04.6]} 31... Rxd6 {[%clk 0:00:29.4]} 32. Nd4
{[%clk 0:00:46.9]} 32... Qd1+ {[%clk 0:00:13.2]} 33. Bf1 {[%clk 0:00:36.1]}
33... Rh6 {[%clk 0:00:13]} 34. Rg5+ {[%clk 0:00:33.4]} 34... Kh8 {[%clk
0:00:11.2]} 35. Rxg3 {[%clk 0:00:31.6]} 35... Qh5 {[%clk 0:00:07]} 36. Rh3
{[%clk 0:00:29.7]} 36... Qg5 {[%clk 0:00:07.3]} 37. Ne6 {[%clk 0:00:24.6]} 37...
Qf6 {[%clk 0:00:04.1]} 38. Rxh6+ {[%clk 0:00:24.4]} 38... Qxh6 {[%clk
0:00:04.6]} 39. Nxf8 {[%clk 0:00:20.4]} 39... Qxf8 {[%clk 0:00:05.5]} 40. Qd4+
{[%clk 0:00:20]} 40... Kh7 {[%clk 0:00:05]} 41. d6 {[%clk 0:00:20.4]} 41... Kh6
{[%clk 0:00:02.3]} 42. Bd3 {[%clk 0:00:21]} 42... Kg5 {[%clk 0:00:02.4]} 43.
Qe5+ {[%clk 0:00:21]} 43... Kg4 {[%clk 0:00:02.5]} 44. Be2+ {[%clk 0:00:20.7]}
44... Kh4 {[%clk 0:00:02.1]} 45. Qh5+ {[%clk 0:00:20.3]} 1-0

[Event "Late-Titled-Tuesday-Blitz-March-05-2024"]
[Site "Chess.com"]
[Date "2024.03.05"]
[Round "4"]
[White "Lukianoo"]
[Black "AldokhinIvan"]
[Result "0-1"]
[WhiteElo "2867"]
[BlackElo "2698"]
[TimeControl "180+1"]
[EndTime "14:39:34 PST"]
[Termination "AldokhinIvan won on time"]

1. e4 {[%clk 0:03:00.9]} 1... c5 {[%clk 0:02:58.9]} 2. Nf3 {[%clk 0:03:00.7]}
2... e6 {[%clk 0:02:59.3]} 3. c3 {[%clk 0:03:00.9]} 3... Nf6 {[%clk 0:02:58.8]}
4. e5 {[%clk 0:03:01.2]} 4... Nd5 {[%clk 0:02:58.8]} 5. d4 {[%clk 0:03:01.9]}
5... cxd4 {[%clk 0:02:59]} 6. cxd4 {[%clk 0:03:02.8]} 6... b6 {[%clk 0:02:54.1]}
7. Bc4 {[%clk 0:03:02.4]} 7... Bb7 {[%clk 0:02:35]} 8. O-O {[%clk 0:03:01.1]}
8... d6 {[%clk 0:02:23.5]} 9. Bxd5 {[%clk 0:02:48.1]} 9... Bxd5 {[%clk
0:02:22.7]} 10. Nc3 {[%clk 0:02:48.4]} 10... Bb7 {[%clk 0:02:14]} 11. d5 {[%clk
0:02:48.4]} 11... exd5 {[%clk 0:01:42.9]} 12. exd6 {[%clk 0:02:36.1]} 12... Bxd6
{[%clk 0:01:42.8]} 13. Re1+ {[%clk 0:02:35.7]} 13... Be7 {[%clk 0:01:42.6]} 14.
Bg5 {[%clk 0:02:09.8]} 14... f6 {[%clk 0:01:41.7]} 15. Nd4 {[%clk 0:01:58.6]}
15... fxg5 {[%clk 0:01:27.4]} 16. Ne6 {[%clk 0:01:57.8]} 16... Qd7 {[%clk
0:01:27.3]} 17. Nxg7+ {[%clk 0:01:46.7]} 17... Kf7 {[%clk 0:01:26]} 18. Ne6
{[%clk 0:01:40.1]} 18... Rc8 {[%clk 0:00:44.3]} 19. Qh5+ {[%clk 0:01:03.6]}
19... Kg8 {[%clk 0:00:44.1]} 20. Re5 {[%clk 0:00:57.8]} 20... Bf6 {[%clk
0:00:18.5]} 21. Rae1 {[%clk 0:00:50.5]} 21... Qf7 {[%clk 0:00:10.8]} 22. Qg4
{[%clk 0:00:29.6]} 22... Nd7 {[%clk 0:00:09.7]} 23. Rf5 {[%clk 0:00:24.8]} 23...
Qg6 {[%clk 0:00:08.8]} 24. h4 {[%clk 0:00:16]} 24... Re8 {[%clk 0:00:06.9]} 25.
hxg5 {[%clk 0:00:14]} 25... Bxc3 {[%clk 0:00:05.8]} 26. bxc3 {[%clk 0:00:11.3]}
26... Rxe6 {[%clk 0:00:06.3]} 27. Rf1 {[%clk 0:00:11.4]} 27... Re4 {[%clk
0:00:05.4]} 28. Qf3 {[%clk 0:00:11]} 28... Ne5 {[%clk 0:00:05.2]} 29. Qh3 {[%clk
0:00:11.4]} 29... Bc8 {[%clk 0:00:03.6]} 30. Qd3 {[%clk 0:00:05.2]} 30... Bxf5
{[%clk 0:00:03.9]} 31. Qxd5+ {[%clk 0:00:06.1]} 31... Qe6 {[%clk 0:00:03.9]} 32.
Qxa8+ {[%clk 0:00:06.9]} 32... Kg7 {[%clk 0:00:04.5]} 33. Qxa7+ {[%clk
0:00:07.1]} 33... Kg6 {[%clk 0:00:04.9]} 34. Qb8 {[%clk 0:00:05.6]} 34... Rg4
{[%clk 0:00:04.6]} 35. f3 {[%clk 0:00:05.3]} 35... Rxg5 {[%clk 0:00:04.6]} 36.
Qc7 {[%clk 0:00:04.3]} 36... Qf6 {[%clk 0:00:03.4]} 37. Rd1 {[%clk 0:00:03.6]}
37... Nf7 {[%clk 0:00:03.8]} 0-1

[Event "Late-Titled-Tuesday-Blitz-March-05-2024"]
[Site "Chess.com"]
[Date "2024.03.05"]
[Round "4"]
[White "DeTimmerman"]
[Black "VladimirKramnik"]
[Result "0-1"]
[WhiteElo "2748"]
[BlackElo "2972"]
[TimeControl "180+1"]
[EndTime "14:39:37 PST"]
[Termination "VladimirKramnik won on time"]

1. b4 {[%clk 0:03:00.2]} 1... e5 {[%clk 0:02:59.1]} 2. Bb2 {[%clk 0:02:59.8]}
2... Bxb4 {[%clk 0:02:58.8]} 3. Bxe5 {[%clk 0:02:57.5]} 3... Nf6 {[%clk
0:02:59]} 4. Nc3 {[%clk 0:02:56.3]} 4... d5 {[%clk 0:02:48]} 5. Bxf6 {[%clk
0:02:56.2]} 5... gxf6 {[%clk 0:02:48.1]} 6. e3 {[%clk 0:02:55.9]} 6... Nc6
{[%clk 0:02:45]} 7. Nf3 {[%clk 0:02:49.5]} 7... d4 {[%clk 0:02:37.5]} 8. Ne2
{[%clk 0:02:45.1]} 8... dxe3 {[%clk 0:02:28.9]} 9. fxe3 {[%clk 0:02:46]} 9...
Bg4 {[%clk 0:02:27.8]} 10. c3 {[%clk 0:02:43.1]} 10... Bc5 {[%clk 0:02:20.9]}
11. Nf4 {[%clk 0:02:37.8]} 11... Qd6 {[%clk 0:02:18.4]} 12. Be2 {[%clk
0:02:28.5]} 12... O-O-O {[%clk 0:02:16.1]} 13. Nd4 {[%clk 0:02:25.8]} 13... Bd7
{[%clk 0:01:52.9]} 14. O-O {[%clk 0:02:17.4]} 14... Ne5 {[%clk 0:01:38.6]} 15.
Nb3 {[%clk 0:02:09]} 15... Bb6 {[%clk 0:01:36.9]} 16. d4 {[%clk 0:02:04.1]}
16... Ng6 {[%clk 0:01:35.8]} 17. c4 {[%clk 0:01:50.8]} 17... Nxf4 {[%clk
0:01:24]} 18. Rxf4 {[%clk 0:01:47.5]} 18... Qe7 {[%clk 0:01:11.7]} 19. Kf2
{[%clk 0:01:29.6]} 19... Rhe8 {[%clk 0:01:07.9]} 20. Qc1 {[%clk 0:01:29.4]}
20... c6 {[%clk 0:01:03.3]} 21. h3 {[%clk 0:01:18.3]} 21... Bc7 {[%clk 0:01:02]}
22. Rf3 {[%clk 0:01:17.7]} 22... Rg8 {[%clk 0:00:54.6]} 23. Nc5 {[%clk
0:01:05.2]} 23... Qd6 {[%clk 0:00:53]} 24. Ne4 {[%clk 0:00:45.2]} 24... Rxg2+
{[%clk 0:00:39.2]} 25. Kxg2 {[%clk 0:00:45.4]} 25... Qh2+ {[%clk 0:00:39.1]} 26.
Kf1 {[%clk 0:00:46]} 26... Rg8 {[%clk 0:00:33.5]} 27. Ke1 {[%clk 0:00:43.6]}
27... Ba5+ {[%clk 0:00:32.2]} 28. Kd1 {[%clk 0:00:34.5]} 28... Bxh3 {[%clk
0:00:28]} 29. Qa3 {[%clk 0:00:12.7]} 29... Rg1+ {[%clk 0:00:25.8]} 30. Bf1
{[%clk 0:00:13.1]} 30... Bxf1 {[%clk 0:00:17.7]} 31. Qf8+ {[%clk 0:00:13.1]}
31... Bd8 {[%clk 0:00:14]} 32. Nd6+ {[%clk 0:00:13.2]} 32... Kd7 {[%clk
0:00:05.1]} 33. Qxf7+ {[%clk 0:00:12.5]} 33... Be7 {[%clk 0:00:05.2]} 34. Qe8+
{[%clk 0:00:12.8]} 34... Kxd6 {[%clk 0:00:05.3]} 35. c5+ {[%clk 0:00:13.5]}
35... Ke6 {[%clk 0:00:04.8]} 36. Qc8+ {[%clk 0:00:02.3]} 36... Kf7 {[%clk
0:00:04.9]} 37. Qf5 {[%clk 0:00:01.4]} 37... Bd3+ {[%clk 0:00:03.6]} 0-1

[Event "Late-Titled-Tuesday-Blitz-March-05-2024"]
[Site "Chess.com"]
[Date "2024.03.05"]
[Round "4"]
[White "C_K_G"]
[Black "Onthequiet"]
[Result "1-0"]
[WhiteElo "2179"]
[BlackElo "2429"]
[TimeControl "180+1"]
[EndTime "14:39:38 PST"]
[Termination "C_K_G won on time"]

1. e4 {[%clk 0:02:54.8]} 1... c6 {[%clk 0:02:59.4]} 2. Nf3 {[%clk 0:02:54.6]}
2... d5 {[%clk 0:02:59.8]} 3. Nc3 {[%clk 0:02:54.8]} 3... dxe4 {[%clk
0:02:59.7]} 4. Nxe4 {[%clk 0:02:54.7]} 4... Nf6 {[%clk 0:03:00.6]} 5. Ng3 {[%clk
0:02:51.9]} 5... g6 {[%clk 0:02:59.8]} 6. d4 {[%clk 0:02:50.8]} 6... Bg7 {[%clk
0:03:00]} 7. h3 {[%clk 0:02:50.8]} 7... Nbd7 {[%clk 0:02:58.6]} 8. Bc4 {[%clk
0:02:49.2]} 8... O-O {[%clk 0:02:58]} 9. O-O {[%clk 0:02:48.8]} 9... a5 {[%clk
0:02:57.1]} 10. a4 {[%clk 0:02:47]} 10... Nb6 {[%clk 0:02:56.3]} 11. Bb3 {[%clk
0:02:46.2]} 11... Nfd5 {[%clk 0:02:55]} 12. Re1 {[%clk 0:02:45.5]} 12... Qc7
{[%clk 0:02:52.8]} 13. c4 {[%clk 0:02:42.2]} 13... Nb4 {[%clk 0:02:49.6]} 14.
Qe2 {[%clk 0:02:22.7]} 14... e6 {[%clk 0:02:31.9]} 15. Bd2 {[%clk 0:02:12.5]}
15... Nd7 {[%clk 0:02:28]} 16. Bc3 {[%clk 0:02:07]} 16... c5 {[%clk 0:02:20.4]}
17. Rad1 {[%clk 0:01:57]} 17... b6 {[%clk 0:02:12.5]} 18. d5 {[%clk 0:01:48.3]}
18... exd5 {[%clk 0:02:13.4]} 19. Bxg7 {[%clk 0:01:46.4]} 19... Kxg7 {[%clk
0:02:14.3]} 20. cxd5 {[%clk 0:01:46.4]} 20... Ba6 {[%clk 0:02:11.8]} 21. Qe3
{[%clk 0:01:28.4]} 21... Rae8 {[%clk 0:01:42.6]} 22. Qc3+ {[%clk 0:01:17.1]}
22... f6 {[%clk 0:00:32.6]} 23. d6 {[%clk 0:01:17]} 23... Qd8 {[%clk 0:00:32.3]}
24. Ng5 {[%clk 0:00:54.5]} 24... Ne5 {[%clk 0:00:28.1]} 25. f4 {[%clk
0:00:51.6]} 25... fxg5 {[%clk 0:00:26.6]} 26. fxe5 {[%clk 0:00:51.8]} 26... Kh6
{[%clk 0:00:21.9]} 27. e6 {[%clk 0:00:48]} 27... Rf4 {[%clk 0:00:18]} 28. e7
{[%clk 0:00:32.7]} 28... Qd7 {[%clk 0:00:17.3]} 29. Rd2 {[%clk 0:00:18.6]} 29...
Bc8 {[%clk 0:00:10.4]} 30. Be6 {[%clk 0:00:16.5]} 30... Qxe6 {[%clk 0:00:09.8]}
31. Rxe6 {[%clk 0:00:16.1]} 31... Bxe6 {[%clk 0:00:10.7]} 32. d7 {[%clk
0:00:16.7]} 32... Bxd7 {[%clk 0:00:10.8]} 33. Rxd7 {[%clk 0:00:17.5]} 33... Nc6
{[%clk 0:00:09.4]} 34. Qd2 {[%clk 0:00:15.7]} 34... Nd4 {[%clk 0:00:09.3]} 35.
Ne2 {[%clk 0:00:14.2]} 35... Re4 {[%clk 0:00:07.4]} 36. Nxd4 {[%clk 0:00:14.3]}
36... cxd4 {[%clk 0:00:08.1]} 37. Kh2 {[%clk 0:00:13.5]} 37... R8xe7 {[%clk
0:00:07.6]} 38. Rxd4 {[%clk 0:00:14.1]} 38... Re2 {[%clk 0:00:07.2]} 39. Qd3
{[%clk 0:00:13.4]} 39... Rxb2 {[%clk 0:00:06.6]} 40. Qg3 {[%clk 0:00:14.3]}
40... Ree2 {[%clk 0:00:06.5]} 41. Rd5 {[%clk 0:00:14.6]} 1-0

[Event "Late-Titled-Tuesday-Blitz-March-05-2024"]
[Site "Chess.com"]
[Date "2024.03.05"]
[Round "4"]
[White "MeisterJabo"]
[Black "finec2"]
[Result "1/2-1/2"]
[WhiteElo "2452"]
[BlackElo "2218"]
[TimeControl "180+1"]
[EndTime "14:39:39 PST"]
[Termination "Game drawn by repetition"]

1. c4 {[%clk 0:02:56.9]} 1... Nf6 {[%clk 0:02:59.6]} 2. g3 {[%clk 0:02:56.9]}
2... g6 {[%clk 0:03:00]} 3. Bg2 {[%clk 0:02:57.5]} 3... Bg7 {[%clk 0:03:00.6]}
4. Nc3 {[%clk 0:02:58]} 4... O-O {[%clk 0:03:01.3]} 5. Nf3 {[%clk 0:02:58.6]}
5... d6 {[%clk 0:03:02]} 6. d4 {[%clk 0:02:58.8]} 6... c5 {[%clk 0:03:02.2]} 7.
O-O {[%clk 0:02:58.4]} 7... Nc6 {[%clk 0:03:02.5]} 8. dxc5 {[%clk 0:02:55.7]}
8... dxc5 {[%clk 0:03:03.4]} 9. Be3 {[%clk 0:02:56.6]} 9... Be6 {[%clk
0:02:49.4]} 10. Bxc5 {[%clk 0:02:33.6]} 10... Bxc4 {[%clk 0:02:47.7]} 11. Qa4
{[%clk 0:02:32.9]} 11... Ba6 {[%clk 0:02:34.1]} 12. Rfd1 {[%clk 0:02:28.8]}
12... Qc7 {[%clk 0:02:33.1]} 13. Nb5 {[%clk 0:02:22.9]} 13... Bxb5 {[%clk
0:02:30.1]} 14. Qxb5 {[%clk 0:02:23.8]} 14... a6 {[%clk 0:02:29.4]} 15. Qb6
{[%clk 0:01:44.4]} 15... Qxb6 {[%clk 0:02:28.9]} 16. Bxb6 {[%clk 0:01:45.3]}
16... e6 {[%clk 0:02:29.3]} 17. Nd4 {[%clk 0:01:43.4]} 17... Nd7 {[%clk
0:01:42.9]} 18. Bxc6 {[%clk 0:00:31.6]} 18... Nxb6 {[%clk 0:01:41.7]} 19. Bxb7
{[%clk 0:00:29.4]} 19... Ra7 {[%clk 0:01:31.6]} 20. Bg2 {[%clk 0:00:28.8]} 20...
Rd7 {[%clk 0:01:24.9]} 21. Nb3 {[%clk 0:00:17]} 21... Bxb2 {[%clk 0:01:23.1]}
22. Rxd7 {[%clk 0:00:17.1]} 22... Nxd7 {[%clk 0:01:22.3]} 23. Rd1 {[%clk
0:00:17.2]} 23... Ne5 {[%clk 0:01:02.3]} 24. h4 {[%clk 0:00:18.1]} 24... h5
{[%clk 0:00:56]} 25. Bf3 {[%clk 0:00:12.4]} 25... Nxf3+ {[%clk 0:00:55.6]} 26.
exf3 {[%clk 0:00:12.7]} 26... Ra8 {[%clk 0:00:46.9]} 27. Rd2 {[%clk 0:00:12.5]}
27... Bf6 {[%clk 0:00:45.5]} 28. Rd7 {[%clk 0:00:09.8]} 28... a5 {[%clk
0:00:42.7]} 29. Nc5 {[%clk 0:00:10.1]} 29... a4 {[%clk 0:00:24.1]} 30. Ne4
{[%clk 0:00:09.3]} 30... Bg7 {[%clk 0:00:21.3]} 31. Ng5 {[%clk 0:00:05.5]} 31...
a3 {[%clk 0:00:15]} 32. Nxf7 {[%clk 0:00:05.3]} 32... Rb8 {[%clk 0:00:11.1]} 33.
Ng5 {[%clk 0:00:04.8]} 33... Rb2 {[%clk 0:00:08.4]} 34. Nxe6 {[%clk 0:00:04.7]}
34... Be5 {[%clk 0:00:08.3]} 35. f4 {[%clk 0:00:04.8]} 35... Bf6 {[%clk
0:00:08]} 36. Ra7 {[%clk 0:00:02]} 36... Rxa2 {[%clk 0:00:08.2]} 37. Ng5 {[%clk
0:00:01.2]} 37... Ra1+ {[%clk 0:00:07.9]} 38. Kg2 {[%clk 0:00:01.7]} 38... a2
{[%clk 0:00:08]} 39. Ra8+ {[%clk 0:00:01.8]} 39... Kg7 {[%clk 0:00:05.3]} 40.
Ra7+ {[%clk 0:00:02.7]} 40... Kg8 {[%clk 0:00:05.7]} 41. Ra8+ {[%clk 0:00:03.3]}
41... Kg7 {[%clk 0:00:06.3]} 42. Ra7+ {[%clk 0:00:03.9]} 42... Kg8 {[%clk
0:00:06.9]} 1/2-1/2

[Event "Late-Titled-Tuesday-Blitz-March-05-2024"]
[Site "Chess.com"]
[Date "2024.03.05"]
[Round "4"]
[White "adricalderon8"]
[Black "Smiechu"]
[Result "1-0"]
[WhiteElo "2519"]
[BlackElo "2346"]
[TimeControl "180+1"]
[EndTime "14:39:45 PST"]
[Termination "adricalderon8 won by checkmate"]

1. d4 {[%clk 0:03:00.9]} 1... Nf6 {[%clk 0:02:56.4]} 2. c4 {[%clk 0:02:58]} 2...
c5 {[%clk 0:02:55.5]} 3. d5 {[%clk 0:02:56.2]} 3... e6 {[%clk 0:02:55.1]} 4. Nc3
{[%clk 0:02:55.6]} 4... exd5 {[%clk 0:02:54.7]} 5. cxd5 {[%clk 0:02:56.5]} 5...
d6 {[%clk 0:02:54.8]} 6. e4 {[%clk 0:02:55.8]} 6... g6 {[%clk 0:02:54]} 7. Bd3
{[%clk 0:02:53.1]} 7... Bg7 {[%clk 0:02:51.3]} 8. h3 {[%clk 0:02:53.2]} 8... O-O
{[%clk 0:02:48.6]} 9. Nf3 {[%clk 0:02:53.4]} 9... b5 {[%clk 0:02:44.7]} 10. Bxb5
{[%clk 0:02:51.6]} 10... Nxe4 {[%clk 0:02:44.6]} 11. O-O {[%clk 0:02:33.8]}
11... Nxc3 {[%clk 0:02:42.4]} 12. bxc3 {[%clk 0:02:34.1]} 12... Bxc3 {[%clk
0:02:36.8]} 13. Rb1 {[%clk 0:02:32.2]} 13... Bf5 {[%clk 0:02:31.9]} 14. Rb3
{[%clk 0:02:29.2]} 14... Bg7 {[%clk 0:02:31.4]} 15. Bf4 {[%clk 0:02:19.1]} 15...
Qc7 {[%clk 0:02:27.6]} 16. Qd2 {[%clk 0:02:17.7]} 16... Nd7 {[%clk 0:02:27.2]}
17. g4 {[%clk 0:01:50.7]} 17... Be4 {[%clk 0:02:26.7]} 18. Ng5 {[%clk
0:01:50.9]} 18... c4 {[%clk 0:02:10.7]} 19. Rc1 {[%clk 0:01:45.4]} 19... c3
{[%clk 0:01:44.1]} 20. Rbxc3 {[%clk 0:01:26.9]} 20... Bxc3 {[%clk 0:01:42.4]}
21. Nxe4 {[%clk 0:01:27.5]} 21... Bxd2 {[%clk 0:01:37.1]} 22. Rxc7 {[%clk
0:01:28.4]} 22... Bxf4 {[%clk 0:01:34.4]} 23. Rxd7 {[%clk 0:01:28.1]} 23... Rfd8
{[%clk 0:01:31]} 24. Re7 {[%clk 0:01:25.9]} 24... Rab8 {[%clk 0:01:25.8]} 25. a4
{[%clk 0:01:23.5]} 25... Rb6 {[%clk 0:01:16.7]} 26. Kg2 {[%clk 0:01:20.7]} 26...
a6 {[%clk 0:01:15.8]} 27. Bc6 {[%clk 0:01:21]} 27... Rb4 {[%clk 0:01:06.5]} 28.
Kf3 {[%clk 0:01:20.3]} 28... g5 {[%clk 0:01:03.1]} 29. h4 {[%clk 0:01:18.2]}
29... h6 {[%clk 0:01:02.6]} 30. hxg5 {[%clk 0:01:04.7]} 30... hxg5 {[%clk
0:01:02]} 31. Ra7 {[%clk 0:01:03.9]} 31... Rb3+ {[%clk 0:00:54.1]} 32. Kg2
{[%clk 0:01:02.6]} 32... Kg7 {[%clk 0:00:52.1]} 33. Rxa6 {[%clk 0:01:01.3]}
33... Rh8 {[%clk 0:00:52]} 34. Ra7 {[%clk 0:00:57.4]} 34... Rh2+ {[%clk
0:00:49.8]} 35. Kf1 {[%clk 0:00:57.8]} 35... Rb1+ {[%clk 0:00:48.2]} 36. Ke2
{[%clk 0:00:57.1]} 36... Rb2+ {[%clk 0:00:47.5]} 37. Kd3 {[%clk 0:00:56.8]}
37... Rg2 {[%clk 0:00:31.4]} 38. Bd7 {[%clk 0:00:53.4]} 38... Rg1 {[%clk
0:00:25.9]} 39. Be6 {[%clk 0:00:52.3]} 39... Rc1 {[%clk 0:00:19.4]} 40. Rxf7+
{[%clk 0:00:48.3]} 40... Kg6 {[%clk 0:00:19.6]} 41. Rf6+ {[%clk 0:00:35.9]}
41... Kh7 {[%clk 0:00:16.1]} 42. Bf5+ {[%clk 0:00:31.7]} 42... Kg7 {[%clk
0:00:14.5]} 43. Rg6+ {[%clk 0:00:32.1]} 43... Kf8 {[%clk 0:00:14.4]} 44. Nxd6
{[%clk 0:00:31.8]} 44... Rb3+ {[%clk 0:00:09.9]} 45. Ke4 {[%clk 0:00:30.2]}
45... Bxd6 {[%clk 0:00:08.7]} 46. Rxd6 {[%clk 0:00:29.7]} 46... Re1+ {[%clk
0:00:05.1]} 47. Kd4 {[%clk 0:00:29]} 47... Rb4+ {[%clk 0:00:05.3]} 48. Kc5
{[%clk 0:00:29]} 48... Rxa4 {[%clk 0:00:05.7]} 49. Rf6+ {[%clk 0:00:28.5]} 49...
Ke7 {[%clk 0:00:05.3]} 50. Rg6 {[%clk 0:00:26.9]} 50... Rc1+ {[%clk 0:00:05.2]}
51. Kb5 {[%clk 0:00:24.2]} 51... Ra2 {[%clk 0:00:04.7]} 52. d6+ {[%clk
0:00:23.3]} 52... Kd8 {[%clk 0:00:04.1]} 53. Rg8# {[%clk 0:00:22.3]} 1-0